[Event "*** SCC Grand Prix: Titled Tuesday Blitz"]
[Site "Chess.com"]
[Date "2020.07.07"]
[Round "5"]
[White "PetrolulSah"]
[Black "Veiso"]
[Result "1/2-1/2"]
[WhiteElo "2177"]
[BlackElo "2379"]
[TimeControl "180+1"]
[EndTime "10:57:45 PDT"]
[Termination "Game drawn by repetition"]

1. d4 {[%clk 0:03:00.9]} 1... d5 {[%clk 0:02:58.9]} 2. Nf3 {[%clk 0:03:00.6]}
2... Nf6 {[%clk 0:02:58.3]} 3. g3 {[%clk 0:03:00.7]} 3... e6 {[%clk 0:02:58.2]}
4. Bg2 {[%clk 0:03:00.9]} 4... Be7 {[%clk 0:02:58.8]} 5. O-O {[%clk 0:03:01]}
5... O-O {[%clk 0:02:59.4]} 6. c4 {[%clk 0:03:01.6]} 6... dxc4 {[%clk
0:02:59.5]} 7. Qc2 {[%clk 0:03:01.7]} 7... a6 {[%clk 0:02:59.8]} 8. a4 {[%clk
0:03:01.9]} 8... Bd7 {[%clk 0:02:59.3]} 9. Ne5 {[%clk 0:03:00]} 9... Bc6 {[%clk
0:02:56.4]} 10. Nxc6 {[%clk 0:02:57.7]} 10... Nxc6 {[%clk 0:02:56.4]} 11. Bxc6
{[%clk 0:02:57.7]} 11... bxc6 {[%clk 0:02:54.6]} 12. Qxc4 {[%clk 0:02:56.1]}
12... Qd5 {[%clk 0:02:54.5]} 13. Qd3 {[%clk 0:02:54.9]} 13... c5 {[%clk
0:02:49.2]} 14. Rd1 {[%clk 0:02:36.5]} 14... Rfd8 {[%clk 0:02:42.4]} 15. Be3
{[%clk 0:02:07.9]} 15... cxd4 {[%clk 0:02:40.2]} 16. Bxd4 {[%clk 0:02:03.9]}
16... c5 {[%clk 0:02:36.5]} 17. Bxf6 {[%clk 0:01:55.6]} 17... Qxd3 {[%clk
0:02:34]} 18. Rxd3 {[%clk 0:01:52.1]} 18... Rxd3 {[%clk 0:02:34]} 19. exd3
{[%clk 0:01:49.6]} 19... Bxf6 {[%clk 0:02:34.6]} 20. Nc3 {[%clk 0:01:46.9]}
20... Rb8 {[%clk 0:02:25.2]} 21. Ne4 {[%clk 0:01:44.2]} 21... Bd4 {[%clk
0:02:21.9]} 22. Rc1 {[%clk 0:01:40]} 22... Rxb2 {[%clk 0:02:19.4]} 23. Nxc5
{[%clk 0:01:24]} 23... Bxf2+ {[%clk 0:01:28.6]} 24. Kh1 {[%clk 0:01:23.9]} 24...
Bxc5 {[%clk 0:01:06.1]} 25. Rxc5 {[%clk 0:01:22.8]} 25... g6 {[%clk 0:01:06.6]}
26. Rc6 {[%clk 0:01:16.2]} 26... a5 {[%clk 0:01:01.9]} 27. Rc5 {[%clk
0:01:16.2]} 27... Rd2 {[%clk 0:00:58.5]} 28. Rxa5 {[%clk 0:01:15.2]} 28... Rxd3
{[%clk 0:00:58.8]} 29. Kg2 {[%clk 0:01:09.3]} 29... Rd2+ {[%clk 0:00:57.9]} 30.
Kg1 {[%clk 0:01:08.1]} 30... h5 {[%clk 0:00:58.3]} 31. h4 {[%clk 0:01:06.7]}
31... Kg7 {[%clk 0:00:58.2]} 32. Ra7 {[%clk 0:01:06.2]} 32... Ra2 {[%clk
0:00:55.8]} 33. a5 {[%clk 0:01:05.9]} 33... e5 {[%clk 0:00:56.1]} 34. a6 {[%clk
0:01:05.6]} 34... e4 {[%clk 0:00:54.8]} 35. Re7 {[%clk 0:00:55.3]} 35... Rxa6
{[%clk 0:00:52.3]} 36. Rxe4 {[%clk 0:00:55.1]} 36... Ra2 {[%clk 0:00:52.9]} 37.
Rb4 {[%clk 0:00:53.3]} 37... Kf6 {[%clk 0:00:51.9]} 38. Rf4+ {[%clk 0:00:51.9]}
38... Ke6 {[%clk 0:00:51.6]} 39. Re4+ {[%clk 0:00:51.8]} 39... Kd6 {[%clk
0:00:51.6]} 40. Re3 {[%clk 0:00:47.5]} 40... f6 {[%clk 0:00:47.5]} 41. Rf3
{[%clk 0:00:45.3]} 41... Ke5 {[%clk 0:00:44]} 42. Kf1 {[%clk 0:00:41.7]} 42...
g5 {[%clk 0:00:40.5]} 43. hxg5 {[%clk 0:00:41]} 43... fxg5 {[%clk 0:00:41.4]}
44. Rf8 {[%clk 0:00:41]} 44... Rh2 {[%clk 0:00:36]} 45. Kg1 {[%clk 0:00:40.2]}
45... Ra2 {[%clk 0:00:22.5]} 46. Kf1 {[%clk 0:00:38.8]} 46... Ke4 {[%clk
0:00:20.9]} 47. Kg1 {[%clk 0:00:37]} 47... g4 {[%clk 0:00:20.4]} 48. Rf7 {[%clk
0:00:34.8]} 48... Ra3 {[%clk 0:00:19.4]} 49. Kg2 {[%clk 0:00:33.4]} 49... Ra2+
{[%clk 0:00:19.8]} 50. Kg1 {[%clk 0:00:33.3]} 50... Ra5 {[%clk 0:00:20.1]} 51.
Kg2 {[%clk 0:00:31.8]} 51... Rf5 {[%clk 0:00:19.5]} 52. Re7+ {[%clk 0:00:31.8]}
52... Re5 {[%clk 0:00:18.1]} 53. Rf7 {[%clk 0:00:31.8]} 53... Rf5 {[%clk
0:00:18.4]} 54. Re7+ {[%clk 0:00:31.8]} 54... Kd5 {[%clk 0:00:18.7]} 55. Re8
{[%clk 0:00:30.8]} 55... Re5 {[%clk 0:00:17.3]} 56. Rf8 {[%clk 0:00:30.8]} 56...
Re2+ {[%clk 0:00:17.5]} 57. Kf1 {[%clk 0:00:30.1]} 57... Re5 {[%clk 0:00:16.4]}
58. Kg2 {[%clk 0:00:29.5]} 58... Ke6 {[%clk 0:00:16.1]} 59. Rf4 {[%clk
0:00:24.3]} 59... Rf5 {[%clk 0:00:15.1]} 60. Ra4 {[%clk 0:00:23.3]} 60... Kf6
{[%clk 0:00:15.3]} 61. Ra6+ {[%clk 0:00:22.8]} 61... Kg5 {[%clk 0:00:15.5]} 62.
Ra4 {[%clk 0:00:22.7]} 62... Rb5 {[%clk 0:00:15.3]} 63. Rc4 {[%clk 0:00:22.3]}
63... h4 {[%clk 0:00:11.6]} 64. gxh4+ {[%clk 0:00:21.4]} 64... Kxh4 {[%clk
0:00:12.5]} 65. Rc3 {[%clk 0:00:20.7]} 65... Rb2+ {[%clk 0:00:12.1]} 66. Kg1
{[%clk 0:00:20.8]} 66... Ra2 {[%clk 0:00:11.6]} 67. Rd3 {[%clk 0:00:20.7]} 67...
Re2 {[%clk 0:00:11.5]} 68. Rd1 {[%clk 0:00:20.4]} 68... Kh3 {[%clk 0:00:08.2]}
69. Rd3+ {[%clk 0:00:20]} 69... g3 {[%clk 0:00:07.9]} 70. Rd1 {[%clk 0:00:20.2]}
70... Ra2 {[%clk 0:00:05.3]} 71. Rc1 {[%clk 0:00:20.3]} 71... Rg2+ {[%clk
0:00:04.8]} 72. Kh1 {[%clk 0:00:19.9]} 72... Rd2 {[%clk 0:00:04.2]} 73. Kg1
{[%clk 0:00:20]} 73... Ra2 {[%clk 0:00:02.5]} 74. Rb1 {[%clk 0:00:19.8]} 74...
Ra3 {[%clk 0:00:02.6]} 75. Kh1 {[%clk 0:00:19.2]} 75... Rf3 {[%clk 0:00:02.6]}
76. Kg1 {[%clk 0:00:19.1]} 76... g2 {[%clk 0:00:02.9]} 77. Rc1 {[%clk
0:00:18.5]} 77... Kg3 {[%clk 0:00:03.1]} 78. Rb1 {[%clk 0:00:18.5]} 78... Re3
{[%clk 0:00:03.2]} 79. Rc1 {[%clk 0:00:18.2]} 79... Kf3 {[%clk 0:00:03.5]} 80.
Rb1 {[%clk 0:00:17.9]} 80... Rd3 {[%clk 0:00:02.8]} 81. Ra1 {[%clk 0:00:17.5]}
81... Re3 {[%clk 0:00:02.2]} 82. Rb1 {[%clk 0:00:17.5]} 82... Re2 {[%clk
0:00:02.1]} 83. Rb3+ {[%clk 0:00:16.8]} 83... Re3 {[%clk 0:00:02.6]} 84. Rb1
{[%clk 0:00:16.1]} 1/2-1/2

[Event "*** SCC Grand Prix: Titled Tuesday Blitz"]
[Site "Chess.com"]
[Date "2020.07.07"]
[Round "5"]
[White "DishonorOnYourCow"]
[Black "bratkoo"]
[Result "1/2-1/2"]
[WhiteElo "2328"]
[BlackElo "2446"]
[TimeControl "180+1"]
[EndTime "10:57:49 PDT"]
[Termination "Game drawn - insufficient material"]

1. d4 {[%clk 0:03:00.9]} 1... e6 {[%clk 0:02:59.6]} 2. c4 {[%clk 0:02:25.8]}
2... d5 {[%clk 0:02:58.4]} 3. Nc3 {[%clk 0:02:23.5]} 3... c6 {[%clk 0:02:57.3]}
4. cxd5 {[%clk 0:02:23.5]} 4... exd5 {[%clk 0:02:57.3]} 5. Qc2 {[%clk
0:02:23.4]} 5... Bd6 {[%clk 0:02:56.9]} 6. Nf3 {[%clk 0:02:22]} 6... h6 {[%clk
0:02:56.8]} 7. e3 {[%clk 0:02:21.1]} 7... Nf6 {[%clk 0:02:54.9]} 8. Bd3 {[%clk
0:02:21.3]} 8... O-O {[%clk 0:02:54]} 9. O-O {[%clk 0:02:19.9]} 9... Re8 {[%clk
0:02:54.3]} 10. a3 {[%clk 0:02:17.3]} 10... Bg4 {[%clk 0:02:54.3]} 11. Be2
{[%clk 0:02:12.2]} 11... Nbd7 {[%clk 0:02:54]} 12. h3 {[%clk 0:02:10.5]} 12...
Bh5 {[%clk 0:02:53.8]} 13. b4 {[%clk 0:02:09]} 13... a6 {[%clk 0:02:51.8]} 14.
Bb2 {[%clk 0:02:07.9]} 14... Ne4 {[%clk 0:02:42.4]} 15. Na4 {[%clk 0:01:55.5]}
15... Bg6 {[%clk 0:02:35.4]} 16. Bd3 {[%clk 0:01:50.2]} 16... Qe7 {[%clk
0:02:31.7]} 17. Nc5 {[%clk 0:01:48]} 17... Ndf6 {[%clk 0:02:14.9]} 18. Ne5
{[%clk 0:01:27.3]} 18... Bh7 {[%clk 0:02:09.2]} 19. Nxe4 {[%clk 0:01:20.3]}
19... Bxe4 {[%clk 0:02:00.2]} 20. Bxe4 {[%clk 0:01:10.7]} 20... Nxe4 {[%clk
0:02:00.3]} 21. f3 {[%clk 0:00:45.6]} 21... Ng3 {[%clk 0:01:51.5]} 22. Rfe1
{[%clk 0:00:43.7]} 22... f6 {[%clk 0:01:31.8]} 23. Ng6 {[%clk 0:00:41.9]} 23...
Qd7 {[%clk 0:01:30.7]} 24. e4 {[%clk 0:00:39.5]} 24... dxe4 {[%clk 0:01:22.6]}
25. fxe4 {[%clk 0:00:40.4]} 25... Bc7 {[%clk 0:01:18.8]} 26. e5 {[%clk
0:00:33.3]} 26... fxe5 {[%clk 0:01:19]} 27. dxe5 {[%clk 0:00:33.2]} 27... Bb6+
{[%clk 0:01:07.6]} 28. Kh2 {[%clk 0:00:31.3]} 28... Nf5 {[%clk 0:01:07.5]} 29.
Rad1 {[%clk 0:00:27]} 29... Qc7 {[%clk 0:01:02.5]} 30. Qxf5 {[%clk 0:00:25.3]}
30... Qf7 {[%clk 0:00:58.6]} 31. Qxf7+ {[%clk 0:00:24.8]} 31... Kxf7 {[%clk
0:00:59.2]} 32. Nf4 {[%clk 0:00:24.9]} 32... g5 {[%clk 0:00:59.6]} 33. Nh5
{[%clk 0:00:24.3]} 33... Re7 {[%clk 0:00:58.1]} 34. Rf1+ {[%clk 0:00:22.1]}
34... Kg6 {[%clk 0:00:58.3]} 35. Nf6 {[%clk 0:00:20.2]} 35... Bc7 {[%clk
0:00:57]} 36. Rd7 {[%clk 0:00:18.7]} 36... Bxe5+ {[%clk 0:00:56.7]} 37. Bxe5
{[%clk 0:00:17.2]} 37... Rxe5 {[%clk 0:00:57.6]} 38. Ng4 {[%clk 0:00:16.3]}
38... Re6 {[%clk 0:00:57.3]} 39. Rxb7 {[%clk 0:00:15.9]} 39... h5 {[%clk
0:00:56.9]} 40. Nf2 {[%clk 0:00:14.9]} 40... a5 {[%clk 0:00:57.5]} 41. bxa5
{[%clk 0:00:13.1]} 41... Rxa5 {[%clk 0:00:57.7]} 42. Nd3 {[%clk 0:00:13.3]}
42... Rxa3 {[%clk 0:00:57.3]} 43. Nc5 {[%clk 0:00:13.6]} 43... Rf6 {[%clk
0:00:54.8]} 44. Rxf6+ {[%clk 0:00:11.9]} 44... Kxf6 {[%clk 0:00:55.7]} 45. Rb6
{[%clk 0:00:11.2]} 45... Ke5 {[%clk 0:00:52.2]} 46. Rxc6 {[%clk 0:00:11]} 46...
Kd5 {[%clk 0:00:52.1]} 47. Rc8 {[%clk 0:00:10.4]} 47... g4 {[%clk 0:00:52.3]}
48. hxg4 {[%clk 0:00:09.2]} 48... hxg4 {[%clk 0:00:52.9]} 49. Nd7 {[%clk
0:00:08.7]} 49... Ke6 {[%clk 0:00:52.8]} 50. Nf8+ {[%clk 0:00:08.1]} 50... Kf7
{[%clk 0:00:52.4]} 51. Nh7 {[%clk 0:00:08]} 51... Kg7 {[%clk 0:00:48.6]} 52. Ng5
{[%clk 0:00:07.8]} 52... Kf6 {[%clk 0:00:49.1]} 53. Ne4+ {[%clk 0:00:07.6]}
53... Ke5 {[%clk 0:00:48.8]} 54. Ng3 {[%clk 0:00:07.7]} 54... Ra7 {[%clk
0:00:48.4]} 55. Rg8 {[%clk 0:00:05.5]} 55... Rh7+ {[%clk 0:00:47.7]} 56. Kg1
{[%clk 0:00:05.8]} 56... Kf4 {[%clk 0:00:48]} 57. Ne2+ {[%clk 0:00:05.6]} 57...
Ke3 {[%clk 0:00:48.4]} 58. Kf1 {[%clk 0:00:03.7]} 58... Rh1+ {[%clk 0:00:36.7]}
59. Ng1 {[%clk 0:00:03.6]} 59... Kf4 {[%clk 0:00:37.6]} 60. Rf8+ {[%clk
0:00:03.6]} 60... Kg3 {[%clk 0:00:36.6]} 61. Ra8 {[%clk 0:00:03.2]} 61... Rh6
{[%clk 0:00:34.5]} 62. Ra3+ {[%clk 0:00:02.5]} 62... Kh2 {[%clk 0:00:34.4]} 63.
Kf2 {[%clk 0:00:02.1]} 63... Rf6+ {[%clk 0:00:34.6]} 64. Nf3+ {[%clk 0:00:01.9]}
64... gxf3 {[%clk 0:00:32]} 65. gxf3 {[%clk 0:00:02.8]} 65... Kh3 {[%clk
0:00:31.3]} 66. Ke3 {[%clk 0:00:03.1]} 66... Kg3 {[%clk 0:00:31]} 67. Ra5 {[%clk
0:00:02]} 67... Re6+ {[%clk 0:00:29.7]} 68. Kd4 {[%clk 0:00:02.2]} 68... Kf4
{[%clk 0:00:28.6]} 69. Kc4 {[%clk 0:00:01.9]} 69... Rd6 {[%clk 0:00:27.6]} 70.
Kb4 {[%clk 0:00:02.8]} 70... Rd4+ {[%clk 0:00:27.9]} 71. Kb5 {[%clk 0:00:02.3]}
71... Rd3 {[%clk 0:00:28.1]} 72. Ka6 {[%clk 0:00:03.2]} 72... Rd6+ {[%clk
0:00:28]} 73. Ka7 {[%clk 0:00:02.8]} 73... Rf6 {[%clk 0:00:27.9]} 74. Ra4+
{[%clk 0:00:03.2]} 74... Kxf3 {[%clk 0:00:27.8]} 75. Ra6 {[%clk 0:00:04.1]}
75... Rf5 {[%clk 0:00:27.6]} 76. Kb6 {[%clk 0:00:04.3]} 76... Ke4 {[%clk
0:00:27.3]} 77. Ra3 {[%clk 0:00:04.6]} 77... Rf6+ {[%clk 0:00:27]} 78. Kb5
{[%clk 0:00:04.1]} 78... Kd4 {[%clk 0:00:26.4]} 79. Ra4+ {[%clk 0:00:05]} 79...
Kd5 {[%clk 0:00:26.9]} 80. Ra8 {[%clk 0:00:04.5]} 80... Rd6 {[%clk 0:00:26.1]}
81. Rc8 {[%clk 0:00:04.3]} 81... Rd7 {[%clk 0:00:25.3]} 82. Rc1 {[%clk
0:00:03.9]} 82... Rb7+ {[%clk 0:00:25]} 83. Ka6 {[%clk 0:00:03.5]} 83... Rb2
{[%clk 0:00:25]} 84. Rd1+ {[%clk 0:00:03.5]} 84... Kc5 {[%clk 0:00:25.2]} 85.
Rc1+ {[%clk 0:00:03.6]} 85... Kd6 {[%clk 0:00:25.1]} 86. Rd1+ {[%clk 0:00:03.6]}
86... Kc6 {[%clk 0:00:25.5]} 87. Rc1+ {[%clk 0:00:03.8]} 87... Kd7 {[%clk
0:00:25.9]} 88. Rd1+ {[%clk 0:00:04]} 88... Kc8 {[%clk 0:00:26.3]} 89. Rc1+
{[%clk 0:00:04.2]} 89... Kb8 {[%clk 0:00:26.6]} 90. Rd1 {[%clk 0:00:03.5]} 90...
Ra2+ {[%clk 0:00:26]} 91. Kb5 {[%clk 0:00:03]} 91... Rb2+ {[%clk 0:00:26.4]} 92.
Kc4 {[%clk 0:00:03.3]} 92... Rb7 {[%clk 0:00:26.1]} 93. Kd3 {[%clk 0:00:03.6]}
93... Re7 {[%clk 0:00:25.5]} 94. Kc2 {[%clk 0:00:03.2]} 94... Rb7 {[%clk
0:00:25.2]} 95. Rb1 {[%clk 0:00:04.1]} 95... Rxb1 {[%clk 0:00:24.6]} 96. Kxb1
{[%clk 0:00:05]} 1/2-1/2

[Event "*** SCC Grand Prix: Titled Tuesday Blitz"]
[Site "Chess.com"]
[Date "2020.07.07"]
[Round "5"]
[White "nikitakhoroshev"]
[Black "RobertoJBM"]
[Result "0-1"]
[WhiteElo "2513"]
[BlackElo "2711"]
[TimeControl "180+1"]
[EndTime "10:57:58 PDT"]
[Termination "RobertoJBM won by resignation"]

1. d4 {[%clk 0:03:00.3]} 1... d5 {[%clk 0:02:59.4]} 2. c4 {[%clk 0:02:58.8]}
2... c6 {[%clk 0:02:59.8]} 3. Nc3 {[%clk 0:02:57.4]} 3... Nf6 {[%clk 0:03:00.3]}
4. Nf3 {[%clk 0:02:57.2]} 4... dxc4 {[%clk 0:02:59.8]} 5. a4 {[%clk 0:02:56.7]}
5... Bf5 {[%clk 0:02:58.2]} 6. e3 {[%clk 0:02:56.9]} 6... e6 {[%clk 0:02:57.4]}
7. Bxc4 {[%clk 0:02:57.3]} 7... Bb4 {[%clk 0:02:57.6]} 8. O-O {[%clk 0:02:57.7]}
8... O-O {[%clk 0:02:56.6]} 9. Qe2 {[%clk 0:02:58.1]} 9... Bg6 {[%clk
0:02:55.6]} 10. Ne5 {[%clk 0:02:57.7]} 10... Nbd7 {[%clk 0:02:55.4]} 11. Nxg6
{[%clk 0:02:57.6]} 11... hxg6 {[%clk 0:02:56.3]} 12. Rd1 {[%clk 0:02:57.8]}
12... Qe7 {[%clk 0:02:56.1]} 13. e4 {[%clk 0:02:51.5]} 13... e5 {[%clk
0:02:56.3]} 14. dxe5 {[%clk 0:02:45.3]} 14... Nxe5 {[%clk 0:02:55.9]} 15. Bb3
{[%clk 0:02:44.3]} 15... Rad8 {[%clk 0:02:54.8]} 16. Bg5 {[%clk 0:02:42.5]}
16... Rxd1+ {[%clk 0:02:49.5]} 17. Rxd1 {[%clk 0:02:41.6]} 17... Rd8 {[%clk
0:02:44.7]} 18. Rxd8+ {[%clk 0:02:40.6]} 18... Qxd8 {[%clk 0:02:45.6]} 19. f3
{[%clk 0:02:35.2]} 19... Bc5+ {[%clk 0:02:43.6]} 20. Be3 {[%clk 0:02:32.9]}
20... Qb6 {[%clk 0:02:41.6]} 21. Bxc5 {[%clk 0:02:30.7]} 21... Qxc5+ {[%clk
0:02:42.5]} 22. Kf1 {[%clk 0:02:28.5]} 22... Qb4 {[%clk 0:02:33.9]} 23. Ba2
{[%clk 0:02:23.5]} 23... Qd4 {[%clk 0:02:23.7]} 24. Bb3 {[%clk 0:01:58.6]} 24...
Nh5 {[%clk 0:02:06.2]} 25. g3 {[%clk 0:01:56.4]} 25... g5 {[%clk 0:01:34.6]} 26.
Nd1 {[%clk 0:01:47.4]} 26... g4 {[%clk 0:01:29]} 27. fxg4 {[%clk 0:01:47.3]}
27... Nf6 {[%clk 0:01:28.7]} 28. Nf2 {[%clk 0:01:45]} 28... c5 {[%clk
0:01:20.6]} 29. g5 {[%clk 0:01:42.9]} 29... Nfd7 {[%clk 0:01:16.4]} 30. a5
{[%clk 0:01:29.8]} 30... c4 {[%clk 0:01:15.7]} 31. Bd1 {[%clk 0:01:24.7]} 31...
Nc5 {[%clk 0:01:14.8]} 32. h4 {[%clk 0:01:22.4]} 32... Ncd3 {[%clk 0:01:11.5]}
33. Nxd3 {[%clk 0:01:15.4]} 33... Nxd3 {[%clk 0:01:11.3]} 34. b3 {[%clk
0:01:12.7]} 34... c3 {[%clk 0:00:58.9]} 35. h5 {[%clk 0:01:12.4]} 35... Nc5
{[%clk 0:00:41]} 36. Bc2 {[%clk 0:01:10.1]} 36... Ne6 {[%clk 0:00:38.3]} 37. g6
{[%clk 0:01:08.7]} 37... fxg6 {[%clk 0:00:38]} 38. hxg6 {[%clk 0:01:08.9]} 38...
Kf8 {[%clk 0:00:38.1]} 39. e5 {[%clk 0:01:05.6]} 39... Ke7 {[%clk 0:00:37.4]}
40. Kg2 {[%clk 0:00:48.2]} 40... Nc5 {[%clk 0:00:34.5]} 41. Qf3 {[%clk
0:00:44.2]} 41... Qxe5 {[%clk 0:00:32.7]} 42. b4 {[%clk 0:00:41.5]} 42... Nd7
{[%clk 0:00:28.4]} 43. Qf7+ {[%clk 0:00:33.5]} 43... Kd6 {[%clk 0:00:27.9]} 44.
Qf2 {[%clk 0:00:29.9]} 44... Qd5+ {[%clk 0:00:20.8]} 45. Kh2 {[%clk 0:00:29.7]}
45... Qd2 {[%clk 0:00:20.8]} 46. Kg2 {[%clk 0:00:28.1]} 46... Qxf2+ {[%clk
0:00:20]} 47. Kxf2 {[%clk 0:00:29]} 47... Ne5 {[%clk 0:00:20.9]} 48. Ke3 {[%clk
0:00:28.5]} 48... Nc6 {[%clk 0:00:21.2]} 49. Be4 {[%clk 0:00:26.9]} 49... Nxb4
{[%clk 0:00:21.2]} 50. Bxb7 {[%clk 0:00:27.4]} 50... Kc5 {[%clk 0:00:21.7]} 51.
a6 {[%clk 0:00:25.8]} 51... Kb6 {[%clk 0:00:21.8]} 52. Bc8 {[%clk 0:00:25.3]}
52... Nxa6 {[%clk 0:00:21.9]} 53. Kd3 {[%clk 0:00:25.5]} 53... Nb8 {[%clk
0:00:22]} 54. Kxc3 {[%clk 0:00:25.5]} 54... Kc5 {[%clk 0:00:22.9]} 55. Kd3
{[%clk 0:00:25.3]} 55... Nc6 {[%clk 0:00:23.8]} 56. Ke4 {[%clk 0:00:24.2]} 56...
Ne7 {[%clk 0:00:24.7]} 57. Ba6 {[%clk 0:00:22.2]} 57... Kd6 {[%clk 0:00:24.6]}
58. Bd3 {[%clk 0:00:19.6]} 58... Nxg6 {[%clk 0:00:25.2]} 59. Kd4 {[%clk
0:00:18.6]} 59... Ne7 {[%clk 0:00:26.1]} 60. Ba6 {[%clk 0:00:18.5]} 60... Nc6+
{[%clk 0:00:25.8]} 61. Ke4 {[%clk 0:00:18.8]} 61... Ke6 {[%clk 0:00:25.2]} 62.
Bc8+ {[%clk 0:00:18.1]} 62... Kf6 {[%clk 0:00:25.4]} 63. Bb7 {[%clk 0:00:18.3]}
63... Ne7 {[%clk 0:00:25.2]} 64. Ba6 {[%clk 0:00:17.6]} 64... Kg5 {[%clk
0:00:25.6]} 65. Kf3 {[%clk 0:00:17.6]} 65... Kf5 {[%clk 0:00:25.7]} 66. Bc8+
{[%clk 0:00:16.7]} 66... Ke5 {[%clk 0:00:26.6]} 67. Kg4 {[%clk 0:00:16.8]} 67...
a5 {[%clk 0:00:27.3]} 68. Bd7 {[%clk 0:00:16.5]} 68... Nd5 {[%clk 0:00:27]} 69.
Kg5 {[%clk 0:00:16.3]} 69... Nb6 {[%clk 0:00:26.2]} 70. Be8 {[%clk 0:00:16]}
70... Ke6 {[%clk 0:00:24.9]} 71. Bg6 {[%clk 0:00:15.3]} 71... a4 {[%clk
0:00:24.2]} 72. Bc2 {[%clk 0:00:14.9]} 72... Ke7 {[%clk 0:00:23]} 73. Kg6 {[%clk
0:00:14.1]} 73... Kf8 {[%clk 0:00:22.6]} 74. g4 {[%clk 0:00:15]} 74... a3 {[%clk
0:00:23]} 75. Bb3 {[%clk 0:00:15.2]} 75... Na4 {[%clk 0:00:23.5]} 76. Kf5 {[%clk
0:00:14.2]} 76... Nc3 {[%clk 0:00:23.7]} 77. g5 {[%clk 0:00:14.3]} 77... a2
{[%clk 0:00:24.2]} 78. Bxa2 {[%clk 0:00:14.4]} 78... Nxa2 {[%clk 0:00:25.1]} 79.
Ke6 {[%clk 0:00:15.3]} 79... Ke8 {[%clk 0:00:25.3]} 80. g6 {[%clk 0:00:14.6]}
80... Nb4 {[%clk 0:00:26.2]} 81. Kd6 {[%clk 0:00:14.1]} 81... Nd3 {[%clk
0:00:26.8]} 82. Ke6 {[%clk 0:00:14.3]} 82... Nf2 {[%clk 0:00:27.3]} 83. Kd6
{[%clk 0:00:14.1]} 83... Nd1 {[%clk 0:00:27.6]} 84. Ke6 {[%clk 0:00:14.1]} 84...
Ne3 {[%clk 0:00:28.5]} 85. Kd6 {[%clk 0:00:14.4]} 85... Nc4+ {[%clk 0:00:29.4]}
86. Ke6 {[%clk 0:00:14.5]} 86... Nb6 {[%clk 0:00:29.8]} 87. Kd6 {[%clk
0:00:14.5]} 87... Nc8+ {[%clk 0:00:30.7]} 88. Ke6 {[%clk 0:00:15]} 88... Ne7
{[%clk 0:00:31.6]} 0-1